bitfinex/quotes_SOLUSD_20230904
["timestamp","ask_amount","ask_price","bid_price","bid_amount"]
[1693827003081,33.49,19.6,19.584,43.268687]
[1693827003261,33.49,19.6,19.584,83.57873289]
[1693827003576,33.49,19.6,19.585,55.0]
[1693827005378,33.49,19.6,19.584,83.57873289]
[1693827007277,33.49,19.6,19.585,55.0]
[1693827008368,33.49,19.6,19.584,83.57873289]
[1693827008569,33.49,19.6,19.584,40.31004589]
[1693827008774,4.03168692,19.599,19.582,25.33636621]
[1693827009082,4.03168692,19.599,19.583,20.0]
[1693827009766,4.03168692,19.599,19.584,55.0]
[1693827010575,4.03168692,19.599,19.584,80.33636621]
[1693827011476,4.03168692,19.599,19.585,25.33636621]
[1693827011666,4.03168692,19.599,19.586,55.0]
[1693827020290,4.03168692,19.599,19.586,94.95099539]
[1693827031493,4.03168692,19.599,19.586,120.2873616]
[1693827032494,33.49,19.6,19.586,120.2873616]
[1693827032697,4.03168692,19.606,19.586,120.2873616]
[1693827032899,24.03168692,19.606,19.586,120.2873616]
[1693827034891,33.49,19.6,19.586,120.2873616]
[1693827039389,33.49,19.6,19.586,39.95099539]
[1693827039590,33.49,19.6,19.585,15.15467074]
[1693827039591,4.03168692,19.599,19.585,15.15467074]
[1693827039886,4.94461036,19.599,19.585,15.15467074]
[1693827040782,4.94461036,19.599,19.586,55.0]
[1693827041698,33.49,19.6,19.586,55.0]
[1693827044307,20.0,19.605,19.586,55.0]
[1693827044604,4.94461036,19.605,19.586,55.0]
[1693827047303,4.8708965,19.605,19.586,55.0]
[1693827048292,4.8708965,19.605,19.586,80.33636621]
[1693827049697,4.8708965,19.605,19.586,120.94452947]
[1693827052607,33.49,19.6,19.586,95.60816326]
[1693827052796,4.8708965,19.599,19.586,95.60816326]
[1693827069521,4.8708965,19.599,19.585,15.15467074]
[1693827069730,4.8708965,19.599,19.583,20.0]
[1693827070231,33.49,19.59,19.57,33.49]
[1693827070524,33.49,19.59,19.573,25.33636621]
[1693827070525,4.8708965,19.589,19.573,25.33636621]
[1693827072020,4.8708965,19.589,19.573,80.15074805]
[1693827073120,4.8708965,19.589,19.574,55.0]
[1693827073437,4.8708965,19.589,19.575,25.33636621]
[1693827073822,33.49,19.59,19.576,55.0]
[1693827074131,4.8708965,19.589,19.576,80.33636621]
[1693827075738,4.8708965,19.589,19.577,25.33636621]
[1693827076043,4.8708965,19.589,19.578,55.0]
[1693827076338,24.8708965,19.596,19.578,55.0]
[1693827076539,36.6542065,19.596,19.578,55.0]
[1693827078425,36.6542065,19.596,19.578,80.33636621]
[1693827079136,36.6542065,19.596,19.579,25.33636621]
[1693827079340,36.6542065,19.596,19.58,55.0]
[1693827095335,36.6542065,19.596,19.58,95.06533945]
[1693827095645,36.6542065,19.596,19.58,128.55533945]
[1693827096446,16.6542065,19.596,19.581,20.0]
[1693827096645,4.8708965,19.596,19.582,55.0]
[1693827096853,4.8708965,19.599,19.583,20.0]
[1693827097147,4.8708965,19.599,19.584,55.0]
[1693827099749,4.8708965,19.599,19.584,88.49]
[1693827100751,4.8708965,19.599,19.583,20.0]
[1693827101057,4.8708965,19.599,19.581,20.0]
[1693827101353,4.8708965,19.599,19.581,45.33636621]
[1693827101552,4.8708965,19.599,19.581,78.82636621]
[1693827102049,4.8708965,19.599,19.582,55.0]
[1693827102251,4.8708965,19.599,19.583,20.0]
[1693827102553,4.8708965,19.599,19.584,55.0]
[1693827105757,4.8708965,19.599,19.584,80.33636621]
[1693827115457,4.8708965,19.599,19.584,121.78942743]
[1693827115757,4.8708965,19.599,19.584,96.45306122]
[1693827117858,4.8708965,19.599,19.584,111.76224488]
[1693827129471,4.8708965,19.599,19.584,41.45306122]
[1693827129671,4.8708965,19.599,19.581,58.82636621]
[1693827129672,4.8708965,19.599,19.581,33.49]
[1693827129963,16.6427165,19.599,19.582,20.0]
[1693827131770,16.6427165,19.599,19.583,55.0]
[1693827132350,16.6427165,19.599,19.582,20.0]
[1693827132556,55.0,19.598,19.582,20.0]
[1693827132755,4.8708965,19.597,19.582,20.0]
[1693827133272,4.8708965,19.598,19.582,20.0]
[1693827133661,4.8708965,19.598,19.583,55.0]
[1693827133858,4.8708965,19.596,19.583,55.0]
[1693827135170,11.77182,19.595,19.582,20.0]
[1693827135371,33.49,19.59,19.568,401.4]
[1693827135583,33.49,19.59,19.571,20.0]
[1693827135584,4.8708965,19.589,19.571,20.0]
[1693827135877,4.8708965,19.589,19.574,33.49]
[1693827136458,4.8708965,19.589,19.571,20.0]
[1693827136973,4.8708965,19.589,19.571,45.33636621]
[1693827137575,4.8708965,19.589,19.572,55.0]
[1693827137755,4.8708965,19.589,19.573,20.0]
[1693827137955,4.8708965,19.589,19.574,55.0]
[1693827140176,4.8708965,19.589,19.573,20.0]
[1693827140373,16.6427165,19.589,19.572,20.0]
[1693827140676,16.6427165,19.589,19.571,20.0]
[1693827140858,11.77182,19.588,19.571,20.0]
[1693827141059,4.8708965,19.587,19.571,20.0]
[1693827141258,4.8708965,19.587,19.571,53.49]
[1693827141475,16.6427165,19.587,19.571,53.49]
[1693827142486,16.6427165,19.587,19.572,55.0]
[1693827142777,16.6427165,19.587,19.573,20.0]
[1693827142977,16.6427165,19.587,19.574,55.0]
[1693827147969,4.8708965,19.587,19.574,55.0]
[1693827148167,4.8708965,19.589,19.574,55.0]
[1693827150280,4.8708965,19.589,19.574,95.86983153]
[1693827150483,4.8708965,19.589,19.574,121.20619774]
[1693827155482,4.8708965,19.593,19.574,121.20619774]
[1693827155783,4.8708965,19.593,19.575,25.33636621]
[1693827155984,4.8708965,19.593,19.576,55.0]
[1693827156182,4.8708965,19.594,19.58,33.49]
[1693827156373,4.8708965,19.594,19.581,55.0]
[1693827157083,4.8708965,19.597,19.581,55.0]
[1693827161984,4.8708965,19.597,19.581,55.0]
[1693827165494,4.8708965,19.599,19.582,20.0]
[1693827165684,4.8708965,19.599,19.583,55.0]
[1693827165878,4.8708965,19.601,19.583,55.0]
[1693827166977,24.8708965,19.604,19.583,55.0]
[1693827169490,49.20182938,19.604,19.583,55.0]
[1693827171282,64.79111508,19.604,19.583,55.0]
[1693827173289,33.49,19.6,19.583,55.0]
[1693827173490,4.8708965,19.599,19.583,55.0]
[1693827177101,4.8708965,19.599,19.583,80.33636621]
[1693827177293,4.8708965,19.603,19.583,80.33636621]
[1693827177986,4.8708965,19.603,19.584,25.33636621]
[1693827178186,4.8708965,19.603,19.585,55.0]
[1693827180994,4.8708965,19.603,19.59,33.49]
[1693827181209,4.8708965,19.603,19.591,55.0]
[1693827181402,24.8708965,19.603,19.591,55.0]
[1693827181597,4.8708965,19.603,19.591,55.0]
[1693827181783,4.8708965,19.604,19.591,55.0]
[1693827184908,4.8708965,19.608,19.591,55.0]
[1693827185291,4.8708965,19.608,19.592,20.0]
[1693827185494,4.8708965,19.609,19.593,55.0]
[1693827186806,4.8708965,19.609,19.593,110.0]
[1693827194299,4.8708965,19.611,19.593,110.0]
[1693827196112,24.8708965,19.616,19.593,110.0]
[1693827196412,49.20182938,19.616,19.593,110.0]
[1693827199009,33.49,19.61,19.593,55.0]
[1693827199212,4.8708965,19.609,19.593,55.0]
[1693827200304,4.8708965,19.609,19.594,55.0]
[1693827203730,4.8708965,19.609,19.594,55.0]
[1693827210901,4.8708965,19.609,19.594,95.26530612]
[1693827211508,24.8708965,19.614,19.594,95.26530612]
[1693827211709,49.20182938,19.614,19.594,95.26530612]
[1693827215827,33.49,19.61,19.594,95.26530612]
[1693827216020,4.8708965,19.609,19.594,95.26530612]
[1693827220531,4.8708965,19.609,19.6,33.49]
[1693827220732,4.8708965,19.613,19.601,55.0]
[1693827220918,4.8708965,19.615,19.601,55.0]
[1693827225322,4.8708965,19.615,19.602,20.0]
[1693827225523,4.8708965,19.615,19.603,55.0]
[1693827226028,4.8708965,19.619,19.603,55.0]
[1693827227031,4.8708965,19.619,19.603,55.0]
[1693827232422,4.8708965,19.619,19.601,56.44750253]
[1693827232423,4.8708965,19.619,19.602,55.0]
[1693827232622,4.8708965,19.619,19.603,20.0]
[1693827232927,4.8708965,19.619,19.604,55.0]
[1693827237447,4.8708965,19.621,19.604,55.0]
[1693827238136,33.49,19.62,19.604,55.0]
[1693827238344,4.8708965,19.619,19.604,55.0]
[1693827241635,4.8708965,19.619,19.603,20.0]
[1693827241839,29.20182938,19.619,19.602,20.0]
[1693827242037,24.33093288,19.618,19.602,20.0]
[1693827242229,4.8708965,19.617,19.602,20.0]
[1693827243734,4.8708965,19.617,19.603,55.0]
[1693827246145,4.8708965,19.619,19.603,55.0]
[1693827246341,4.8708965,19.619,19.601,56.44750253]
[1693827246546,33.49,19.61,19.593,50.5]
[1693827246853,4.8708965,19.609,19.593,40.37104994]
[1693827247041,4.8708965,19.609,19.591,15.14074451]
[1693827247248,4.8708965,19.609,19.593,50.5]
[1693827248656,4.8708965,19.609,19.594,55.0]
[1693827269269,4.8708965,19.609,19.593,91.60555838]
[1693827269461,57.15682938,19.609,19.593,91.60555838]
[1693827269663,4.8708965,19.607,19.593,91.60555838]
[1693827269876,24.8708965,19.607,19.593,41.10555838]
[1693827270075,24.8708965,19.607,19.58,33.49]
[1693827270273,24.8708965,19.607,19.581,45.33636621]
[1693827270568,117.3509965,19.607,19.581,60.26901926]
[1693827270770,97.3509965,19.607,19.581,60.26901926]
[1693827270960,4.8708965,19.599,19.582,55.0]
[1693827271362,4.8708965,19.599,19.583,20.0]
[1693827271561,4.8708965,19.599,19.584,55.0]
[1693827273562,4.8708965,19.599,19.583,20.0]
[1693827273763,4.8708965,19.599,19.582,20.0]
[1693827274971,4.8708965,19.599,19.583,55.0]
[1693827285375,4.8708965,19.605,19.583,55.0]
[1693827291086,33.49,19.6,19.583,55.0]
[1693827291290,4.8708965,19.599,19.583,55.0]
[1693827301785,4.8708965,19.599,19.582,20.0]
[1693827303195,4.8708965,19.599,19.583,55.0]
[1693827358634,4.8708965,19.605,19.583,55.0]
[1693827360527,4.8708965,19.608,19.59,33.49]
[1693827360840,4.8708965,19.609,19.591,20.0]
[1693827361048,4.8708965,19.609,19.591,75.0]
[1693827362444,4.8708965,19.609,19.591,150.0]
[1693827363032,4.8708965,19.609,19.591,95.0]
[1693827363239,24.33093288,19.608,19.591,95.0]
[1693827363538,4.8708965,19.607,19.591,95.0]
[1693827363739,29.20182938,19.607,19.591,95.0]
[1693827364447,29.20182938,19.607,19.592,55.0]
[1693827364647,29.20182938,19.607,19.593,20.0]
[1693827364850,29.20182938,19.607,19.594,55.0]
[1693827369740,4.8708965,19.607,19.594,55.0]
[1693827369946,4.8708965,19.609,19.594,55.0]
[1693827378356,4.8708965,19.609,19.593,20.0]
[1693827378560,4.8708965,19.607,19.592,20.0]
[1693827378761,16.6777165,19.607,19.592,20.0]
[1693827379664,20.0,19.606,19.588,43.070023]
[1693827379954,4.8708965,19.605,19.589,55.0]
[1693827380845,24.8708965,19.606,19.589,55.0]
[1693827383852,4.8708965,19.606,19.589,55.0]
[1693827384168,4.8708965,19.606,19.59,58.82636621]
[1693827384357,4.8708965,19.606,19.591,75.0]
[1693827384552,4.8708965,19.606,19.591,100.33636621]
[1693827385051,4.8708965,19.606,19.592,25.33636621]
[1693827385245,4.8708965,19.609,19.593,75.0]
[1693827396254,4.8708965,19.609,19.593,20.0]
[1693827396455,24.33093288,19.608,19.591,20.0]
[1693827396654,4.8708965,19.607,19.591,20.0]
[1693827397573,4.8708965,19.607,19.592,55.0]
[1693827397777,4.8708965,19.609,19.593,20.0]
[1693827398072,4.8708965,19.609,19.594,55.0]
[1693827399571,4.8708965,19.609,19.594,110.0]
[1693827407173,4.8708965,19.609,19.594,151.02040816]
[1693827407682,4.8708965,19.609,19.594,166.60816325]
[1693827409882,4.8708965,19.609,19.594,191.94452946]
[1693827410072,4.8708965,19.612,19.594,191.94452946]
[1693827418174,4.8708965,19.612,19.594,166.60816325]
[1693827421589,33.49,19.61,19.594,166.60816325]
[1693827421777,4.8708965,19.609,19.594,166.60816325]
[1693827425507,4.8708965,19.612,19.594,166.60816325]
[1693827425885,4.8708965,19.613,19.594,166.60816325]
[1693827431001,4.8708965,19.615,19.594,166.60816325]
[1693827431501,4.8708965,19.615,19.6,33.49]
[1693827431696,4.8708965,19.618,19.601,20.0]
[1693827431890,4.8708965,19.619,19.602,55.0]
[1693827432097,29.20182938,19.619,19.602,55.0]
[1693827432292,29.20182938,19.619,19.603,20.0]
[1693827432496,29.20182938,19.619,19.604,55.0]
[1693827433297,4.8708965,19.619,19.604,55.0]
[1693827443306,4.8708965,19.619,19.604,95.05300713]
[1693827473649,4.8708965,19.619,19.604,40.05300713]
[1693827473847,24.8708965,19.619,19.603,55.0]
[1693827474053,24.33093288,19.618,19.597,1.5583]
[1693827474237,24.8708965,19.617,19.597,1.5583]
[1693827474752,24.8708965,19.617,19.597,26.429197]
[1693827474955,24.8708965,19.617,19.597,65.20542019]
[1693827475137,24.8708965,19.617,19.597,24.870897]
[1693827475447,24.8708965,19.617,19.598,55.0]
[1693827477236,33.49,19.61,19.598,55.0]
[1693827477443,4.8708965,19.609,19.598,55.0]
[1693827477641,4.8708965,19.616,19.598,55.0]
[1693827479756,24.8708965,19.617,19.598,55.0]
[1693827481536,4.8708965,19.617,19.6,33.49]
[1693827481849,4.8708965,19.619,19.601,45.33636621]
[1693827482050,4.8708965,19.619,19.601,100.33636621]
[1693827484042,4.8708965,19.619,19.602,50.5]
[1693827484249,4.8708965,19.619,19.603,75.0]
[1693827484457,4.8708965,19.619,19.603,100.33636621]
[1693827484755,24.8708965,19.624,19.603,100.33636621]
[1693827485464,24.8708965,19.624,19.604,50.5]
[1693827485756,24.8708965,19.624,19.605,55.0]
[1693827486854,20.0,19.623,19.605,55.0]
[1693827487053,4.8708965,19.624,19.605,130.836367]
[1693827487860,4.8708965,19.624,19.61,33.49]
[1693827488156,4.8708965,19.625,19.611,75.0]
[1693827490359,4.8708965,19.629,19.611,75.0]
[1693827491864,4.8708965,19.629,19.611,55.0]
[1693827492050,29.20053172,19.629,19.611,55.0]
[1693827492460,29.20053172,19.629,19.612,20.0]
[1693827492675,29.20053172,19.629,19.613,55.0]
[1693827495152,44.60705234,19.629,19.613,55.0]
[1693827501868,4.8708965,19.629,19.613,55.0]
[1693827505084,4.8708965,19.629,19.613,110.0]
[1693827517294,4.8708965,19.629,19.614,25.33636621]
[1693827517491,4.8708965,19.629,19.615,55.0]
[1693827519493,4.8708965,19.629,19.614,55.0]
[1693827531087,4.8708965,19.629,19.614,96.45565748]
[1693827540396,4.8708965,19.629,19.614,41.45565748]
[1693827540613,4.8708965,19.629,19.613,55.0]
[1693827541901,4.8708965,19.629,19.614,55.0]
[1693827555302,4.8708965,19.629,19.614,95.73394495]
[1693827581637,4.8708965,19.629,19.614,40.73394495]
[1693827581827,4.8708965,19.629,19.613,55.0]
[1693827582938,4.8708965,19.629,19.614,55.0]
[1693827590541,4.8708965,19.629,19.614,80.33636621]
[1693827593738,4.8708965,19.629,19.615,25.33636621]
[1693827593928,4.8708965,19.629,19.616,55.0]
[1693827600474,4.8708965,19.629,19.617,25.33636621]
[1693827600771,4.8708965,19.629,19.618,55.0]
[1693827601675,24.8708965,19.638,19.618,55.0]
[1693827602973,4.8708965,19.638,19.62,33.49]
[1693827603275,4.8708965,19.639,19.621,25.33636621]
[1693827603465,4.8708965,19.639,19.622,55.0]
[1693827603670,4.8708965,19.639,19.623,20.0]
[1693827603885,4.8708965,19.639,19.624,55.0]
[1693827605376,4.8708965,19.639,19.624,110.0]
[1693827612068,4.8708965,19.639,19.624,55.0]
[1693827613473,4.8708965,19.639,19.625,55.0]
[1693827615377,4.8708965,19.639,19.624,55.0]
[1693827615378,4.8708965,19.639,19.624,39.77189408]
[1693827615565,4.8708965,19.629,19.618,41.12423624]
[1693827615770,4.8708965,19.629,19.61,33.49]
[1693827616279,4.8708965,19.629,19.612,41.64562117]
[1693827616494,4.8708965,19.629,19.613,20.0]
[1693827617185,4.8708965,19.629,19.611,20.0]
[1693827617481,4.8708965,19.629,19.612,55.0]
[1693827617683,4.8708965,19.629,19.613,20.0]
[1693827617875,4.8708965,19.629,19.614,55.0]
[1693827631194,4.8708965,19.629,19.614,96.65868567]
[1693827652717,16.6777165,19.629,19.614,96.65868567]
[1693827666239,16.6777165,19.629,19.614,41.65868567]
[1693827666544,33.49,19.62,19.589,599.8]
[1693827666740,4.8708965,19.619,19.601,20.30570911]
[1693827666926,4.8708965,19.619,19.601,0.30570911]
[1693827667532,4.8708965,19.619,19.601,25.64207511]
[1693827667737,4.8708965,19.619,19.602,20.0]
[1693827668045,4.8708965,19.619,19.603,55.0]
[1693827679549,4.8708965,19.619,19.603,96.1708312]
[1693827691069,4.8708965,19.619,19.603,121.50719741]
[1693827700276,4.8708965,19.619,19.604,25.33636621]
[1693827700480,4.8708965,19.619,19.605,55.0]
[1693827702056,4.8708965,19.619,19.605,80.33636621]
[1693827714885,4.8708965,19.619,19.605,95.38226115]
[1693827718285,4.8708965,19.619,19.605,70.04589494]
[1693827725995,4.8708965,19.619,19.606,25.33636621]
[1693827726191,4.8708965,19.619,19.607,55.0]
[1693827728771,4.8708965,19.619,19.607,110.0]
[1693827737596,33.49,19.63,19.61,33.49]
[1693827737787,33.49,19.63,19.611,237.79781643]
[1693827739593,33.49,19.63,19.611,297.95320725]
[1693827751330,33.49,19.63,19.611,338.38927448]
[1693827754445,33.49,19.63,19.611,353.6827029]
[1693827770557,33.49,19.63,19.611,297.71370094]
[1693827779063,33.49,19.63,19.611,353.68043078]
[1693827781045,33.49,19.63,19.612,55.96672984]
[1693827781250,33.49,19.63,19.613,161.82881447]
[1693827781573,33.49,19.63,19.613,181.82881447]
[1693827783863,33.49,19.63,19.613,273.42591447]
[1693827787066,33.49,19.63,19.613,329.39264431]
[1693827788673,91.5971,19.635,19.613,329.39264431]
[1693827788852,20.0,19.634,19.613,389.54803513]
[1693827789052,20.0,19.634,19.614,106.92672984]
[1693827789362,20.0,19.635,19.615,161.82881447]
[1693827789565,33.49,19.63,19.615,161.82881447]
[1693827800878,33.49,19.63,19.615,202.24042933]
[1693827806180,20.0,19.635,19.615,202.24042933]
[1693827816190,33.49,19.63,19.615,202.24042933]
[1693827829691,33.49,19.63,19.615,176.90406312]
[1693827833500,7.942,19.642,19.615,176.90406312]
[1693827833501,33.49,19.64,19.62,33.49]
[1693827833687,33.49,19.64,19.621,75.0]
[1693827835002,49.00018329,19.64,19.621,75.0]
[1693827835805,49.00018329,19.64,19.621,166.351]
[1693827839598,33.49,19.64,19.621,166.351]
[1693827840501,33.49,19.64,19.621,191.68736621]
[1693827840702,33.49,19.64,19.621,268.23530061]
[1693827845209,33.49,19.64,19.621,283.42318248]
[1693827845816,33.49,19.64,19.621,258.08681627]
[1693827849214,33.49,19.64,19.621,299.79761056]
[1693827852814,33.49,19.64,19.621,325.13397677]
[1693827860714,33.49,19.64,19.621,299.79761056]
[1693827860920,33.49,19.64,19.621,168.24967616]
[1693827863420,33.49,19.64,19.622,55.0]
[1693827863608,33.49,19.64,19.623,20.0]
[1693827863921,33.49,19.64,19.624,55.0]
[1693827864221,92.6319,19.639,19.624,55.0]
[1693827871315,90.6319,19.639,19.624,55.0]
[1693827871511,90.6319,19.639,19.625,1.99999011]
[1693827908665,33.49,19.63,19.625,1.99999011]
[1693827909346,33.49,19.63,19.624,41.15274948]
[1693827909545,33.49,19.63,19.616,4.06343712]
[1693827909961,33.49,19.63,19.616,59.06343712]
[1693827910271,33.49,19.63,19.616,4.06343712]
[1693827910957,33.49,19.63,19.616,80.17803812]
[1693827911463,33.49,19.63,19.616,95.23152767]
[1693827911666,33.49,19.63,19.618,4.94461036]
[1693827911869,33.49,19.63,19.617,55.0]
[1693827911870,33.49,19.63,19.62,4.94461036]
[1693827912252,33.49,19.63,19.622,4.94461036]
[1693827912449,33.49,19.63,19.617,4.94461036]
[1693827912880,94.497,19.629,19.617,4.94461036]
[1693827913971,94.497,19.629,19.619,4.94461036]
[1693827914167,94.497,19.629,19.62,55.0]
[1693827914372,94.497,19.629,19.621,4.94461036]
[1693827918973,94.497,19.629,19.617,4.94461036]
[1693827920375,94.497,19.629,19.619,4.94461036]
[1693827924261,94.497,19.629,19.617,4.94461036]
[1693827930962,33.49,19.63,19.617,4.94461036]
[1693827931882,99.4012,19.629,19.617,4.94461036]
[1693827942889,99.4012,19.629,19.618,55.0]
[1693827943072,99.4012,19.629,19.619,4.94461036]
[1693827950489,99.4012,19.629,19.617,4.94461036]
[1693827950691,99.4012,19.629,19.618,55.0]
[1693827950988,99.4012,19.629,19.619,4.94461036]
[1693827966301,99.4012,19.629,19.616,4.94461036]
[1693827966506,99.4012,19.629,19.615,39.76770248]
[1693827966507,99.4012,19.629,19.618,4.94461036]
[1693827971914,99.4012,19.629,19.614,4.94461036]
[1693827972095,33.49,19.62,19.615,55.0]
[1693827972298,33.49,19.62,19.616,4.94461036]
[1693827972497,99.4012,19.629,19.616,4.94461036]
[1693827972701,108.40237,19.629,19.616,4.94461036]
[1693827978905,75.0,19.628,19.616,4.94461036]
[1693827979111,9.01505,19.627,19.612,4.94461036]
[1693827979403,33.49,19.62,19.611,4.94461036]
[1693827979600,33.49,19.62,19.606,4.94461036]
[1693827981009,97.7494,19.619,19.606,4.94461036]
[1693827981398,33.49,19.62,19.607,55.0]
[1693827981598,97.7494,19.619,19.608,4.94461036]
[1693827981797,97.7494,19.619,19.61,4.94461036]
[1693827981995,33.49,19.62,19.608,4.94461036]
[1693827982193,33.49,19.62,19.61,4.94461036]
[1693827982397,33.49,19.62,19.608,4.94461036]
[1693827982596,33.49,19.62,19.61,4.94461036]
[1693827982796,33.49,19.62,19.608,4.94461036]
[1693827982995,33.49,19.62,19.61,4.94461036]
[1693827983819,152.0053,19.619,19.606,4.94461036]
[1693827984001,161.03417,19.619,19.606,4.94461036]
[1693827984318,161.03417,19.619,19.602,24.94461036]
[1693827985297,161.03417,19.619,19.603,55.0]
[1693827985502,161.03417,19.619,19.604,4.94461036]
[1693827985711,161.03417,19.619,19.605,55.0]
[1693827985910,161.03417,19.619,19.606,4.94461036]
[1693827987217,106.03417,19.619,19.606,4.94461036]
[1693827994815,106.03417,19.619,19.606,44.76112411]
[1693828008822,106.03417,19.619,19.606,105.90184271]
[1693828009022,97.0053,19.619,19.607,55.0]
[1693828009222,97.0053,19.619,19.608,4.94461036]
[1693828009533,97.0053,19.619,19.609,55.0]
[1693828009730,97.0053,19.619,19.61,4.94461036]
[1693828011535,33.49,19.62,19.611,55.0]
[1693828011733,33.49,19.62,19.612,4.94461036]
[1693828029445,33.49,19.62,19.613,55.0]
[1693828029644,33.49,19.62,19.614,4.94461036]
[1693828033154,33.49,19.62,19.615,55.0]
[1693828040069,33.49,19.62,19.611,2.86079149]
[1693828040266,33.49,19.62,19.611,57.86079149]
[1693828046571,33.49,19.62,19.611,2.86079149]
[1693828047892,33.49,19.62,19.611,57.86079149]
[1693828057694,33.49,19.62,19.611,83.1971577]
[1693828060592,33.49,19.62,19.611,57.86079149]
[1693828067484,33.49,19.62,19.611,2.86079149]
[1693828068296,92.8548,19.619,19.611,2.86079149]
[1693828068985,33.49,19.62,19.611,2.86079149]
[1693828069299,92.8548,19.619,19.611,2.86079149]
[1693828069793,33.49,19.62,19.611,2.86079149]
[1693828070396,91.1704,19.619,19.611,2.86079149]
[1693828072406,91.1704,19.619,19.609,4.94461036]
[1693828072707,91.1704,19.619,19.61,55.0]
[1693828072890,91.1704,19.619,19.611,4.94461036]
[1693828085409,91.1704,19.619,19.612,55.0]
[1693828085617,91.1704,19.619,19.613,4.94461036]
[1693828088212,91.1704,19.619,19.615,4.94461036]
[1693828088714,91.1704,19.619,19.613,4.94461036]
[1693828088920,91.1704,19.619,19.615,4.94461036]
[1693828089104,91.1704,19.619,19.613,4.94461036]
[1693828097229,91.1704,19.619,19.615,4.94461036]
[1693828097526,91.1704,19.619,19.613,4.94461036]
[1693828097730,91.1704,19.619,19.615,4.94461036]
[1693828097932,33.49,19.62,19.613,4.94461036]
[1693828098127,33.49,19.62,19.614,55.0]
[1693828098322,33.49,19.62,19.615,4.94461036]
[1693828101527,33.49,19.62,19.613,4.94461036]
[1693828102329,33.49,19.62,19.61,4.94461036]
[1693828102515,33.49,19.62,19.612,4.94461036]
[1693828106314,33.49,19.62,19.61,4.94461036]
[1693828106519,33.49,19.62,19.611,55.0]
[1693828106720,33.49,19.62,19.612,4.94461036]
[1693828113333,33.49,19.62,19.609,4.94461036]
[1693828113533,33.49,19.62,19.611,4.94461036]
[1693828113944,33.49,19.62,19.613,4.94461036]
[1693828143367,33.49,19.62,19.614,55.0]
[1693828143566,33.49,19.62,19.615,4.94461036]
[1693828143976,90.0734,19.628,19.615,4.94461036]
[1693828144176,20.0,19.627,19.616,55.0]
[1693828144773,20.0,19.627,19.613,4.61146122]
[1693828144976,33.49,19.62,19.614,55.0]
[1693828145167,33.49,19.62,19.615,4.61146122]
[1693828146570,33.49,19.62,19.614,55.0]
[1693828152881,20.0,19.627,19.614,55.0]
[1693828156175,20.0,19.627,19.615,4.61146122]
[1693828157680,20.0,19.627,19.614,55.0]
[1693828157981,20.0,19.627,19.614,95.04892965]
[1693828158279,20.0,19.627,19.615,4.61146122]
[1693828167294,20.0,19.627,19.616,55.0]
[1693828167693,20.0,19.627,19.615,55.0]
[1693828167994,20.0,19.627,19.616,4.61146122]
[1693828168292,20.0,19.627,19.615,55.0]
[1693828173294,20.0,19.627,19.616,4.78849683]
[1693828173685,20.0,19.627,19.615,55.0]
[1693828180898,20.0,19.627,19.615,96.17023445]
[1693828181985,20.0,19.627,19.616,4.78849683]
[1693828193006,20.0,19.627,19.615,41.17023445]
[1693828193207,33.49,19.62,19.61,4.78849683]
[1693828193410,33.49,19.62,19.611,55.0]
[1693828193604,33.49,19.62,19.612,4.94461036]
[1693828193903,33.49,19.62,19.614,4.94461036]
[1693828195211,33.49,19.62,19.615,55.0]
[1693828196209,20.0,19.627,19.615,55.0]
[1693828205823,33.49,19.62,19.615,55.0]
[1693828206318,33.49,19.62,19.609,4.94461036]
[1693828207422,33.49,19.62,19.61,55.0]